Workbook

Sheet Vista general de la fiesta
B3: Vista general de la fiesta
B6: EVENTO | D6: RESUMEN DE INVITADOS | H6: ="NEATBILDĒJUŠIE UZAICINĀTIE: "&RSVPPendientes -> NEATBILDĒJUŠIE UZAICINĀTIE: 2
B7: El cumpleaños de 75 años de la abuela | D7: VISTA GENERAL DE CONFIRMACIÓN DE ASISTENCIA | F7: COSTES POR INVITADO | H7: IMPORTE DE PRESUPUESTO
D8: Invitados confirmados | E8: Total confirmados | F8: Comida | G8: Otros | H8: Total
B9: FECHA | D9: Adultos | E9: =SUMIF(TablaInvitados[¿ASISTIRÁ?],"=Sí",TablaInvitados[ADULTOS]) -> 26 | F9: =TablaComida[[#Totals],[COSTE POR ADULTO]] -> 12.69 € | G9: =CosteBásicoPorInvitado -> 18.70 € | H9: =(ResumenAsistentes[[#This Row],[Comida]]+ResumenAsistentes[[#This Row],[Otros]])*TotalAdultos -> 816.03 €
B10: 2011-06-14 | D10: Niños | E10: =SUMIF(TablaInvitados[¿ASISTIRÁ?],"=Sí",TablaInvitados[NIÑOS]) -> 20 | F10: =TablaComida[[#Totals],[COSTE POR NIÑO]] -> 7.25 € | G10: =CosteBásicoPorInvitado -> 18.70 € | H10: =(ResumenAsistentes[[#This Row],[Comida]]+ResumenAsistentes[[#This Row],[Otros]])*TotalNiños -> 518.97 €
D11: Total | E11: =SUBTOTAL(109,ResumenAsistentes[Total confirmados]) -> 46 | F11: ="Prom. "&TEXT(SUBTOTAL(101,ResumenAsistentes[Comida]),"#.##0,00 €") -> Prom. 9,97 € | G11: ="Prom. "&TEXT(SUBTOTAL(101,ResumenAsistentes[Otros]),"#.##0,00 €") -> Prom. 18,70 € | H11: =SUBTOTAL(109,ResumenAsistentes[Total]) -> 1,335.00 €
B12: HORA
B13: De 14h a 16h
B15: UBICACIÓN | D15: RESUMEN DE PRESUPUESTO
B16: Casa de la tía Rosa | D16: ARTÍCULO | E16: RECUENTO | F16: IMPORTE DE PRESUPUESTO | G16: COSTE TOTAL | H16: DIFERENCIA
D17: Comida y bebida | E17: =COUNTA(TablaComida[ARTÍCULO DE BEBIDA O COMIDA]) -> 18 | F17: 500.00 € | G17: =TablaComida[[#Totals],[COSTE TOTAL]] -> 475.00 € | H17: =IntroducciónPresupuesto[[#This Row],[IMPORTE DE PRESUPUESTO]]-IntroducciónPresupuesto[[#This Row],[COSTE TOTAL]] -> 25.00 €
D18: =EncabezadoTabla1 -> Equipamiento y provisiones | E18: =COUNTA(PresupuestoTabla1[Equipamiento y provisiones]) -> 7 | F18: 400.00 € | G18: =PresupuestoTabla1[[#Totals],[Coste]] -> 400.00 € | H18: =IntroducciónPresupuesto[[#This Row],[IMPORTE DE PRESUPUESTO]]-IntroducciónPresupuesto[[#This Row],[COSTE TOTAL]] -> 0.00 €
D19: =EncabezadoTabla2 -> Decoración | E19: =COUNTA(PresupuestoTabla2[Decoración]) -> 4 | F19: 150.00 € | G19: =PresupuestoTabla2[[#Totals],[Coste]] -> 175.00 € | H19: =IntroducciónPresupuesto[[#This Row],[IMPORTE DE PRESUPUESTO]]-IntroducciónPresupuesto[[#This Row],[COSTE TOTAL]] -> (25.00 €)
D20: =Table3Header -> Otros | E20: =COUNTA(TPresupuestoTabla3[Otros]) -> 4 | F20: 300.00 € | G20: =TPresupuestoTabla3[[#Totals],[Coste]] -> 285.00 € | H20: =IntroducciónPresupuesto[[#This Row],[IMPORTE DE PRESUPUESTO]]-IntroducciónPresupuesto[[#This Row],[COSTE TOTAL]] -> 15.00 €
D21: Total | E21: =SUBTOTAL(109,IntroducciónPresupuesto[RECUENTO]) -> 33 | F21: =SUBTOTAL(109,IntroducciónPresupuesto[IMPORTE DE PRESUPUESTO]) -> 1,350.00 € | G21: =SUBTOTAL(109,IntroducciónPresupuesto[COSTE TOTAL]) -> 1,335.00 € | H21: =IntroducciónPresupuesto[[#Totals],[IMPORTE DE PRESUPUESTO]]-IntroducciónPresupuesto[[#Totals],[COSTE TOTAL]] -> 15.00 €

Sheet Lista de invitados
B3: Lista de invitados
B7: NOMBRE | C7: DIRECCIÓN | D7: CIUDAD | E7: Provincia o estado | F7: CÓDIGO POSTAL | G7: TELÉFONO | H7: CORREO ELECTRÓNICO | I7: ¿ASISTIRÁ? | J7: NIÑOS | K7: ADULTOS | L7: TOTAL
B8: Familia 1 | C8: Dirección 1 | D8: Ciudad 1 | E8: Provincia o estado 1 | F8: Código postal 1 | G8: Teléfono 1 | H8: Dirección de correo electrónico1 | I8: No | J8: 2 | K8: 2 | L8: =SUM(TablaInvitados[[#This Row],[NIÑOS]:[ADULTOS]]) -> 4
B9: Familia 2 | C9: Dirección 2 | D9: Ciudad 2 | E9: Provincia o estado 2 | F9: Código postal 2 | G9: Teléfono 2 | H9: Dirección de correo electrónico2 | I9: Sí | J9: 1 | K9: 1 | L9: =SUM(TablaInvitados[[#This Row],[NIÑOS]:[ADULTOS]]) -> 2
B10: Familia 3 | C10: Dirección 3 | D10: Ciudad 3 | E10: Provincia o estado 3 | F10: Código postal 3 | G10: Teléfono 3 | H10: Dirección de correo electrónico3 | I10: Sí | J10: 3 | K10: 3 | L10: =SUM(TablaInvitados[[#This Row],[NIÑOS]:[ADULTOS]]) -> 6
B11: Familia 4 | C11: Dirección 4 | D11: Ciudad 4 | E11: Provincia o estado 4 | F11: Código postal 4 | G11: Teléfono 4 | H11: Dirección de correo electrónico4 | K11: 2 | L11: =SUM(TablaInvitados[[#This Row],[NIÑOS]:[ADULTOS]]) -> 2
B12: Familia 5 | C12: Dirección 5 | D12: Ciudad 5 | E12: Provincia o estado 5 | F12: Código postal 5 | G12: Teléfono 5 | H12: Dirección de correo electrónico5 | I12: Sí | J12: 4 | K12: 3 | L12: =SUM(TablaInvitados[[#This Row],[NIÑOS]:[ADULTOS]]) -> 7
B13: Familia 6 | C13: Dirección 6 | D13: Ciudad 6 | E13: Provincia o estado 6 | F13: Código postal 6 | G13: Teléfono 6 | H13: Dirección de correo electrónico6 | I13: Sí | J13: 2 | K13: 2 | L13: =SUM(TablaInvitados[[#This Row],[NIÑOS]:[ADULTOS]]) -> 4
B14: Familia 7 | C14: Dirección 7 | D14: Ciudad 7 | E14: Provincia o estado 7 | F14: Código postal 7 | G14: Teléfono 7 | H14: Dirección de correo electrónico7 | I14: Sí | J14: 1 | K14: 4 | L14: =SUM(TablaInvitados[[#This Row],[NIÑOS]:[ADULTOS]]) -> 5
B15: Familia 8 | C15: Dirección 8 | D15: Ciudad 8 | E15: Provincia o estado 8 | F15: Código postal 8 | G15: Teléfono 8 | H15: Dirección de correo electrónico8 | I15: No | J15: 5 | K15: 3 | L15: =SUM(TablaInvitados[[#This Row],[NIÑOS]:[ADULTOS]]) -> 8
B16: Familia 9 | C16: Dirección 9 | D16: Ciudad 9 | E16: Provincia o estado 9 | F16: Código postal 9 | G16: Teléfono 9 | H16: Dirección de correo electrónico9 | I16: Sí | J16: 3 | K16: 2 | L16: =SUM(TablaInvitados[[#This Row],[NIÑOS]:[ADULTOS]]) -> 5
B17: Familia 10 | C17: Dirección 10 | D17: Ciudad 10 | E17: Provincia o estado 10 | F17: Código postal 10 | G17: Teléfono 10 | H17: Dirección de correo electrónico10 | I17: Sí | K17: 4 | L17: =SUM(TablaInvitados[[#This Row],[NIÑOS]:[ADULTOS]]) -> 4
B18: Familia 11 | C18: Dirección 11 | D18: Ciudad 11 | E18: Provincia o estado 11 | F18: Código postal 11 | G18: Teléfono 11 | H18: Dirección de correo electrónico11 | I18: Sí | J18: 3 | K18: 5 | L18: =SUM(TablaInvitados[[#This Row],[NIÑOS]:[ADULTOS]]) -> 8
B19: Familia 12 | C19: Dirección 12 | D19: Ciudad 12 | E19: Provincia o estado 12 | F19: Código postal 12 | G19: Teléfono 12 | H19: Dirección de correo electrónico12 | I19: No | J19: 2 | K19: 3 | L19: =SUM(TablaInvitados[[#This Row],[NIÑOS]:[ADULTOS]]) -> 5
B20: Familia 13 | C20: Dirección 13 | D20: Ciudad 13 | E20: Provincia o estado 13 | F20: Código postal 13 | G20: Teléfono 13 | H20: Dirección de correo electrónico13 | I20: Sí | J20: 3 | K20: 2 | L20: =SUM(TablaInvitados[[#This Row],[NIÑOS]:[ADULTOS]]) -> 5
B21: Familia 14 | C21: Dirección 14 | D21: Ciudad 14 | E21: Provincia o estado 14 | F21: Código postal 14 | G21: Teléfono 14 | H21: Dirección de correo electrónico14 | I21: No | K21: 1 | L21: =SUM(TablaInvitados[[#This Row],[NIÑOS]:[ADULTOS]]) -> 1
B22: Familia 15 | C22: Dirección 15 | D22: Ciudad 15 | E22: Provincia o estado 15 | F22: Código postal 15 | G22: Teléfono 15 | H22: Dirección de correo electrónico15 | K22: 2 | L22: =SUM(TablaInvitados[[#This Row],[NIÑOS]:[ADULTOS]]) -> 2

Sheet Comida y bebida
B3: Comida y bebida
B5: Introduzca el coste y las consumiciones aproximadas para calcular automáticamente el total de unidades y el coste por consumición en función del total de asistentes
B6: ARTÍCULO DE BEBIDA O COMIDA | C6: COSTE TOTAL | D6: RACIÓN POR NIÑO | E6: RACIÓN POR ADULTO | F6: TOTAL DE RACIONES | G6: COSTE POR RACIÓN | H6: COSTE POR NIÑO | I6: COSTE POR ADULTO | J6: NOTAS
B7: Refrescos | C7: 15.00 € | D7: 0.5 | E7: 2 | F7: =(TablaComida[[#This Row],[RACIÓN POR NIÑO]]*TotalNiños)+(TablaComida[[#This Row],[RACIÓN POR ADULTO]]*TotalAdultos) -> 62 | G7: =IFERROR(TablaComida[[#This Row],[COSTE TOTAL]]/TablaComida[[#This Row],[TOTAL DE RACIONES]],"") -> 0.24 € | H7: =IFERROR(TablaComida[[#This Row],[COSTE POR RACIÓN]]*TablaComida[[#This Row],[RACIÓN POR NIÑO]],"") -> 0.12 € | I7: =IFERROR(TablaComida[[#This Row],[COSTE POR RACIÓN]]*TablaComida[[#This Row],[RACIÓN POR ADULTO]],"") -> 0.48 € | J7: Botellas de 2 litros
B8: Paquetes de zumo | C8: 15.00 € | D8: 2 | E8: 0 | F8: =(TablaComida[[#This Row],[RACIÓN POR NIÑO]]*TotalNiños)+(TablaComida[[#This Row],[RACIÓN POR ADULTO]]*TotalAdultos) -> 40 | G8: =IFERROR(TablaComida[[#This Row],[COSTE TOTAL]]/TablaComida[[#This Row],[TOTAL DE RACIONES]],"") -> 0.38 € | H8: =IFERROR(TablaComida[[#This Row],[COSTE POR RACIÓN]]*TablaComida[[#This Row],[RACIÓN POR NIÑO]],"") -> 0.75 € | I8: =IFERROR(TablaComida[[#This Row],[COSTE POR RACIÓN]]*TablaComida[[#This Row],[RACIÓN POR ADULTO]],"") -> 0.00 € | J8: Manzana y uva blanca
B9: Vino | C9: 50.00 € | D9: 0 | E9: 2 | F9: =(TablaComida[[#This Row],[RACIÓN POR NIÑO]]*TotalNiños)+(TablaComida[[#This Row],[RACIÓN POR ADULTO]]*TotalAdultos) -> 52 | G9: =IFERROR(TablaComida[[#This Row],[COSTE TOTAL]]/TablaComida[[#This Row],[TOTAL DE RACIONES]],"") -> 0.96 € | H9: =IFERROR(TablaComida[[#This Row],[COSTE POR RACIÓN]]*TablaComida[[#This Row],[RACIÓN POR NIÑO]],"") -> 0.00 € | I9: =IFERROR(TablaComida[[#This Row],[COSTE POR RACIÓN]]*TablaComida[[#This Row],[RACIÓN POR ADULTO]],"") -> 1.92 €
B10: Pastel | C10: 75.00 € | D10: 1 | E10: 1 | F10: =(TablaComida[[#This Row],[RACIÓN POR NIÑO]]*TotalNiños)+(TablaComida[[#This Row],[RACIÓN POR ADULTO]]*TotalAdultos) -> 46 | G10: =IFERROR(TablaComida[[#This Row],[COSTE TOTAL]]/TablaComida[[#This Row],[TOTAL DE RACIONES]],"") -> 1.63 € | H10: =IFERROR(TablaComida[[#This Row],[COSTE POR RACIÓN]]*TablaComida[[#This Row],[RACIÓN POR NIÑO]],"") -> 1.63 € | I10: =IFERROR(TablaComida[[#This Row],[COSTE POR RACIÓN]]*TablaComida[[#This Row],[RACIÓN POR ADULTO]],"") -> 1.63 € | J10: Encargar en la panadería local
B11: Helado | C11: 20.00 € | D11: 1 | E11: 1.5 | F11: =(TablaComida[[#This Row],[RACIÓN POR NIÑO]]*TotalNiños)+(TablaComida[[#This Row],[RACIÓN POR ADULTO]]*TotalAdultos) -> 59 | G11: =IFERROR(TablaComida[[#This Row],[COSTE TOTAL]]/TablaComida[[#This Row],[TOTAL DE RACIONES]],"") -> 0.34 € | H11: =IFERROR(TablaComida[[#This Row],[COSTE POR RACIÓN]]*TablaComida[[#This Row],[RACIÓN POR NIÑO]],"") -> 0.34 € | I11: =IFERROR(TablaComida[[#This Row],[COSTE POR RACIÓN]]*TablaComida[[#This Row],[RACIÓN POR ADULTO]],"") -> 0.51 €
B12: Tazas de pudding | C12: 15.00 € | D12: 1 | E12: 0 | F12: =(TablaComida[[#This Row],[RACIÓN POR NIÑO]]*TotalNiños)+(TablaComida[[#This Row],[RACIÓN POR ADULTO]]*TotalAdultos) -> 20 | G12: =IFERROR(TablaComida[[#This Row],[COSTE TOTAL]]/TablaComida[[#This Row],[TOTAL DE RACIONES]],"") -> 0.75 € | H12: =IFERROR(TablaComida[[#This Row],[COSTE POR RACIÓN]]*TablaComida[[#This Row],[RACIÓN POR NIÑO]],"") -> 0.75 € | I12: =IFERROR(TablaComida[[#This Row],[COSTE POR RACIÓN]]*TablaComida[[#This Row],[RACIÓN POR ADULTO]],"") -> 0.00 € | J12: Comprar paquetes de vainilla y chocolate
B13: Setas rellenas | C13: 32.00 € | D13: 1 | E13: 2 | F13: =(TablaComida[[#This Row],[RACIÓN POR NIÑO]]*TotalNiños)+(TablaComida[[#This Row],[RACIÓN POR ADULTO]]*TotalAdultos) -> 72 | G13: =IFERROR(TablaComida[[#This Row],[COSTE TOTAL]]/TablaComida[[#This Row],[TOTAL DE RACIONES]],"") -> 0.44 € | H13: =IFERROR(TablaComida[[#This Row],[COSTE POR RACIÓN]]*TablaComida[[#This Row],[RACIÓN POR NIÑO]],"") -> 0.44 € | I13: =IFERROR(TablaComida[[#This Row],[COSTE POR RACIÓN]]*TablaComida[[#This Row],[RACIÓN POR ADULTO]],"") -> 0.89 € | J13: Setas rellenas de queso cremoso y salchicha
B14: Bruschetta | C14: 22.00 € | D14: 0 | E14: 3 | F14: =(TablaComida[[#This Row],[RACIÓN POR NIÑO]]*TotalNiños)+(TablaComida[[#This Row],[RACIÓN POR ADULTO]]*TotalAdultos) -> 78 | G14: =IFERROR(TablaComida[[#This Row],[COSTE TOTAL]]/TablaComida[[#This Row],[TOTAL DE RACIONES]],"") -> 0.28 € | H14: =IFERROR(TablaComida[[#This Row],[COSTE POR RACIÓN]]*TablaComida[[#This Row],[RACIÓN POR NIÑO]],"") -> 0.00 € | I14: =IFERROR(TablaComida[[#This Row],[COSTE POR RACIÓN]]*TablaComida[[#This Row],[RACIÓN POR ADULTO]],"") -> 0.85 € | J14: Tomate y albahaca
B15: Salmón ahumado | C15: 50.00 € | D15: 1 | E15: 2 | F15: =(TablaComida[[#This Row],[RACIÓN POR NIÑO]]*TotalNiños)+(TablaComida[[#This Row],[RACIÓN POR ADULTO]]*TotalAdultos) -> 72 | G15: =IFERROR(TablaComida[[#This Row],[COSTE TOTAL]]/TablaComida[[#This Row],[TOTAL DE RACIONES]],"") -> 0.69 € | H15: =IFERROR(TablaComida[[#This Row],[COSTE POR RACIÓN]]*TablaComida[[#This Row],[RACIÓN POR NIÑO]],"") -> 0.69 € | I15: =IFERROR(TablaComida[[#This Row],[COSTE POR RACIÓN]]*TablaComida[[#This Row],[RACIÓN POR ADULTO]],"") -> 1.39 €
B16: Panecillos | C16: 20.00 € | D16: 1 | E16: 2 | F16: =(TablaComida[[#This Row],[RACIÓN POR NIÑO]]*TotalNiños)+(TablaComida[[#This Row],[RACIÓN POR ADULTO]]*TotalAdultos) -> 72 | G16: =IFERROR(TablaComida[[#This Row],[COSTE TOTAL]]/TablaComida[[#This Row],[TOTAL DE RACIONES]],"") -> 0.28 € | H16: =IFERROR(TablaComida[[#This Row],[COSTE POR RACIÓN]]*TablaComida[[#This Row],[RACIÓN POR NIÑO]],"") -> 0.28 € | I16: =IFERROR(TablaComida[[#This Row],[COSTE POR RACIÓN]]*TablaComida[[#This Row],[RACIÓN POR ADULTO]],"") -> 0.56 € | J16: 4 bolsas: surtido
B17: Queso cremoso | C17: 10.00 € | D17: 1 | E17: 2 | F17: =(TablaComida[[#This Row],[RACIÓN POR NIÑO]]*TotalNiños)+(TablaComida[[#This Row],[RACIÓN POR ADULTO]]*TotalAdultos) -> 72 | G17: =IFERROR(TablaComida[[#This Row],[COSTE TOTAL]]/TablaComida[[#This Row],[TOTAL DE RACIONES]],"") -> 0.14 € | H17: =IFERROR(TablaComida[[#This Row],[COSTE POR RACIÓN]]*TablaComida[[#This Row],[RACIÓN POR NIÑO]],"") -> 0.14 € | I17: =IFERROR(TablaComida[[#This Row],[COSTE POR RACIÓN]]*TablaComida[[#This Row],[RACIÓN POR ADULTO]],"") -> 0.28 € | J17: 2 tubos grandes
B18: Alcaparras | C18: 12.00 € | D18: 1 | E18: 2 | F18: =(TablaComida[[#This Row],[RACIÓN POR NIÑO]]*TotalNiños)+(TablaComida[[#This Row],[RACIÓN POR ADULTO]]*TotalAdultos) -> 72 | G18: =IFERROR(TablaComida[[#This Row],[COSTE TOTAL]]/TablaComida[[#This Row],[TOTAL DE RACIONES]],"") -> 0.17 € | H18: =IFERROR(TablaComida[[#This Row],[COSTE POR RACIÓN]]*TablaComida[[#This Row],[RACIÓN POR NIÑO]],"") -> 0.17 € | I18: =IFERROR(TablaComida[[#This Row],[COSTE POR RACIÓN]]*TablaComida[[#This Row],[RACIÓN POR ADULTO]],"") -> 0.33 € | J18: 3 botes
B19: Alitas de pollo | C19: 45.00 € | D19: 2 | E19: 4 | F19: =(TablaComida[[#This Row],[RACIÓN POR NIÑO]]*TotalNiños)+(TablaComida[[#This Row],[RACIÓN POR ADULTO]]*TotalAdultos) -> 144 | G19: =IFERROR(TablaComida[[#This Row],[COSTE TOTAL]]/TablaComida[[#This Row],[TOTAL DE RACIONES]],"") -> 0.31 € | H19: =IFERROR(TablaComida[[#This Row],[COSTE POR RACIÓN]]*TablaComida[[#This Row],[RACIÓN POR NIÑO]],"") -> 0.63 € | I19: =IFERROR(TablaComida[[#This Row],[COSTE POR RACIÓN]]*TablaComida[[#This Row],[RACIÓN POR ADULTO]],"") -> 1.25 € | J19: Comprado en la pollería local
B20: Humus | C20: 10.00 € | D20: 4 | E20: 6 | F20: =(TablaComida[[#This Row],[RACIÓN POR NIÑO]]*TotalNiños)+(TablaComida[[#This Row],[RACIÓN POR ADULTO]]*TotalAdultos) -> 236 | G20: =IFERROR(TablaComida[[#This Row],[COSTE TOTAL]]/TablaComida[[#This Row],[TOTAL DE RACIONES]],"") -> 0.04 € | H20: =IFERROR(TablaComida[[#This Row],[COSTE POR RACIÓN]]*TablaComida[[#This Row],[RACIÓN POR NIÑO]],"") -> 0.17 € | I20: =IFERROR(TablaComida[[#This Row],[COSTE POR RACIÓN]]*TablaComida[[#This Row],[RACIÓN POR ADULTO]],"") -> 0.25 € | J20: Prepararlo la noche anterior
B21: Patatas pita con parmesano | C21: 14.00 € | D21: 4 | E21: 6 | F21: =(TablaComida[[#This Row],[RACIÓN POR NIÑO]]*TotalNiños)+(TablaComida[[#This Row],[RACIÓN POR ADULTO]]*TotalAdultos) -> 236 | G21: =IFERROR(TablaComida[[#This Row],[COSTE TOTAL]]/TablaComida[[#This Row],[TOTAL DE RACIONES]],"") -> 0.06 € | H21: =IFERROR(TablaComida[[#This Row],[COSTE POR RACIÓN]]*TablaComida[[#This Row],[RACIÓN POR NIÑO]],"") -> 0.24 € | I21: =IFERROR(TablaComida[[#This Row],[COSTE POR RACIÓN]]*TablaComida[[#This Row],[RACIÓN POR ADULTO]],"") -> 0.36 € | J21: Prepararlo la noche anterior
B22: Surtido de verduras | C22: 30.00 € | D22: 4 | E22: 10 | F22: =(TablaComida[[#This Row],[RACIÓN POR NIÑO]]*TotalNiños)+(TablaComida[[#This Row],[RACIÓN POR ADULTO]]*TotalAdultos) -> 340 | G22: =IFERROR(TablaComida[[#This Row],[COSTE TOTAL]]/TablaComida[[#This Row],[TOTAL DE RACIONES]],"") -> 0.09 € | H22: =IFERROR(TablaComida[[#This Row],[COSTE POR RACIÓN]]*TablaComida[[#This Row],[RACIÓN POR NIÑO]],"") -> 0.35 € | I22: =IFERROR(TablaComida[[#This Row],[COSTE POR RACIÓN]]*TablaComida[[#This Row],[RACIÓN POR ADULTO]],"") -> 0.88 € | J22: Zanahoria, apio, brócoli, coliflor, pimientos verdes y rojos
B23: Bola de queso | C23: 15.00 € | D23: 5 | E23: 10 | F23: =(TablaComida[[#This Row],[RACIÓN POR NIÑO]]*TotalNiños)+(TablaComida[[#This Row],[RACIÓN POR ADULTO]]*TotalAdultos) -> 360 | G23: =IFERROR(TablaComida[[#This Row],[COSTE TOTAL]]/TablaComida[[#This Row],[TOTAL DE RACIONES]],"") -> 0.04 € | H23: =IFERROR(TablaComida[[#This Row],[COSTE POR RACIÓN]]*TablaComida[[#This Row],[RACIÓN POR NIÑO]],"") -> 0.21 € | I23: =IFERROR(TablaComida[[#This Row],[COSTE POR RACIÓN]]*TablaComida[[#This Row],[RACIÓN POR ADULTO]],"") -> 0.42 € | J23: Surtido: queso cremoso, queso curado con nueces
B24: Galletas saladas | C24: 25.00 € | D24: 5 | E24: 10 | F24: =(TablaComida[[#This Row],[RACIÓN POR NIÑO]]*TotalNiños)+(TablaComida[[#This Row],[RACIÓN POR ADULTO]]*TotalAdultos) -> 360 | G24: =IFERROR(TablaComida[[#This Row],[COSTE TOTAL]]/TablaComida[[#This Row],[TOTAL DE RACIONES]],"") -> 0.07 € | H24: =IFERROR(TablaComida[[#This Row],[COSTE POR RACIÓN]]*TablaComida[[#This Row],[RACIÓN POR NIÑO]],"") -> 0.35 € | I24: =IFERROR(TablaComida[[#This Row],[COSTE POR RACIÓN]]*TablaComida[[#This Row],[RACIÓN POR ADULTO]],"") -> 0.69 € | J24: Surtido
B25: Total | C25: =SUBTOTAL(109,TablaComida[COSTE TOTAL]) -> 475.00 € | D25: =SUBTOTAL(109,TablaComida[RACIÓN POR NIÑO]) -> 34.5 | E25: =SUBTOTAL(109,TablaComida[RACIÓN POR ADULTO]) -> 65.5 | F25: =SUBTOTAL(109,TablaComida[TOTAL DE RACIONES]) -> 2393 | G25: =SUBTOTAL(109,TablaComida[COSTE POR RACIÓN]) -> 6.92 € | H25: =SUBTOTAL(109,TablaComida[COSTE POR NIÑO]) -> 7.25 € | I25: =SUBTOTAL(109,TablaComida[COSTE POR ADULTO]) -> 12.69 €

Sheet Otros básicos
B3: Otros básicos
B6: Equipamiento y provisiones | C6: Coste | D6: Comprados | E6: Apuntes
B7: Alquiler de sala/recepción | C7: 250.00 € | D7: Sí
B8: Mantelería | C8: 30.00 € | D8: Sí | E8: Alquiler
B9: Mesas y sillas | C9: 0.00 € | E9: Incluido en el alquiler del local
B10: Servilletas para el aperitivo | C10: 25.00 €
B11: Servilletas para la cena | C11: 20.00 € | E11: Alquiler
B12: Servicio de camareros | C12: 50.00 € | E12: Alquiler
B13: Cristalería | C13: 25.00 € | E13: Alquiler
B14: Total | C14: =SUBTOTAL(109,PresupuestoTabla1[Coste]) -> 400.00 €
B17: Decoración | C17: Coste | D17: Comprados | E17: Apuntes
B18: Globos | C18: 25.00 €
B19: Bombona de helio | C19: 50.00 € | E19: Alquiler
B20: Centros de mesa | C20: 100.00 € | D20: Sí | E20: 10 total
B21: Floreros de cristal | C21: 0.00 € | E21: Prestado de Laura
B22: Total | C22: =SUBTOTAL(109,PresupuestoTabla2[Coste]) -> 175.00 €
B25: Otros | C25: Coste | D25: Comprados | E25: Apuntes
B26: Invitaciones | C26: 50.00 € | D26: Sí
B27: Franqueo | C27: 60.00 € | D27: Sí
B28: Fotógrafo | C28: 125.00 € | E28: 2 horas (de 14h a 16h)
B29: Cotillón | C29: 50.00 €
B30: Total | C30: =SUBTOTAL(109,TPresupuestoTabla3[Coste]) -> 285.00 €

Sheet Disposición de las sillas
A1: Disposición de las sillas
AH35: *1 cuadrado= aproximadamente 0,3 metros cuadrados
A36: Apuntes | T36: =" Total confirmed guests: "&InvitadosConfirmados -> Total confirmed guests: 46
T37: Puede usar cualquiera de las siguientes disposiciones de mesa:
U38: =ROUNDUP(InvitadosConfirmados/6,0)&" mesas redondas de 140 centímetros (6 asientos)" -> 8 mesas redondas de 140 centímetros (6 asientos)
U39: =ROUNDUP(InvitadosConfirmados/8,0) &" mesas redondas de 150 centímetros (8 asientos)" -> 6 mesas redondas de 150 centímetros (8 asientos)
U40: =ROUNDUP(InvitadosConfirmados/10,0)&" mesas redondas de 180 centímetros (10 asientos)" -> 5 mesas redondas de 180 centímetros (10 asientos)
U41: =ROUNDUP(InvitadosConfirmados/6,0)& " mesas rectangulares de 75 centímetros x 180 centímetros (6 asientos)" -> 8 mesas rectangulares de 75 centímetros x 180 centímetros (6 asientos)
U42: =ROUNDUP(InvitadosConfirmados/8,0)&" mesas rectangulares de 75 centímetros x 240 centímetros (8 asientos)" -> 6 mesas rectangulares de 75 centímetros x 240 centímetros (8 asientos)
T43: (Espacio deseado entre mesas: 1 metro)
